bitfinex-derivatives/quotes_ETHF0:USTF0_20260116
["timestamp","ask_amount","ask_price","bid_price","bid_amount"]
[1768556980995,0.14787862,3311.5,3310.1,0.1511]
[1768556981196,0.14787862,3311.5,3310.3,0.85201766]
[1768556981389,0.14787862,3311.5,3310.1,0.1511]
[1768556981786,0.14787862,3311.5,3310.3,0.85201766]
[1768556985504,0.14787862,3311.5,3310.1,0.1511]
[1768556985702,0.14787862,3311.5,3310.3,0.85201766]
[1768556986701,0.14787862,3311.5,3310.1,0.1511]
[1768556986901,0.14787862,3311.5,3310.3,0.85201766]
[1768556992502,0.14787862,3311.5,3310.5,0.85201766]
[1768556993308,0.00452816,3311.5,3310.5,0.85201766]
[1768557008212,0.00452816,3311.5,3310.8,0.85201766]
[1768557010014,0.14548567,3312.3,3311.1,0.85201766]
[1768557010204,1.2109408,3312.2,3310.6,0.13983276]
[1768557010404,1.2109408,3312.1,3311.0,0.85201766]
[1768557010605,1.2109408,3312.0,3311.0,0.85201766]
[1768557010806,1.2109408,3311.9,3311.0,0.85201766]
[1768557011014,0.14548567,3312.3,3311.0,0.85201766]
[1768557011215,1.21065321,3312.2,3311.0,0.85201766]
[1768557011416,1.21057774,3312.1,3311.0,0.85201766]
[1768557011616,1.21057774,3312.0,3311.0,0.85201766]
[1768557011817,0.33837443,3311.9,3311.0,0.85201766]
[1768557012122,0.14548567,3312.3,3311.0,0.85201766]
[1768557012415,1.21034125,3312.2,3311.0,0.85201766]
[1768557012615,1.21034125,3312.1,3311.0,0.85201766]
[1768557012817,1.21034125,3312.0,3311.0,0.85201766]
[1768557013010,0.14548567,3312.3,3311.0,0.85201766]
[1768557013207,1.21021018,3312.2,3311.0,0.85201766]
[1768557013518,1.21021018,3312.1,3311.0,0.85201766]
[1768557013715,1.21021018,3312.0,3311.0,0.85201766]
[1768557013918,0.14548567,3312.3,3311.0,0.85201766]
[1768557014107,1.21006329,3312.2,3311.0,0.85201766]
[1768557014307,1.21006329,3312.1,3311.0,0.85201766]
[1768557014613,0.87178606,3312.0,3311.0,0.85201766]
[1768557014812,0.14548567,3312.3,3311.0,0.85201766]
[1768557015012,1.20992291,3312.2,3311.0,0.85201766]
[1768557015216,1.20992291,3312.1,3311.0,0.85201766]
[1768557015415,0.87168806,3312.0,3311.0,0.85201766]
[1768557015713,0.14548567,3312.3,3311.0,0.85201766]
[1768557015911,1.20983943,3312.2,3311.0,0.85201766]
[1768557016111,1.20983943,3312.1,3311.0,0.85201766]
[1768557016415,0.87162688,3312.0,3311.0,0.85201766]
[1768557016618,0.14548567,3312.3,3311.0,0.85201766]
[1768557016808,1.20975632,3312.2,3311.0,0.85201766]
[1768557017010,1.20975632,3312.1,3311.0,0.85201766]
[1768557017211,1.01430432,3312.0,3310.7,0.85201766]
[1768557017410,0.14273629,3312.0,3310.7,0.85201766]
[1768557023525,0.87154074,3311.9,3310.7,0.85201766]
[1768557023727,0.87154074,3311.8,3310.7,0.85201766]
[1768557024025,0.14273629,3312.0,3310.7,0.85201766]
[1768557024226,0.87154074,3311.9,3310.7,0.85201766]
[1768557024423,0.87154074,3311.8,3310.7,0.85201766]
[1768557024632,0.14273629,3312.0,3310.7,0.85201766]
[1768557024824,0.87156088,3311.9,3310.7,0.85201766]
[1768557025123,0.87156088,3311.8,3310.7,0.85201766]
[1768557025324,0.14273629,3312.0,3310.7,0.85201766]
[1768557025626,0.87158795,3311.9,3310.7,0.85201766]
[1768557025816,0.87158795,3311.8,3310.7,0.85201766]
[1768557026019,0.14273629,3312.0,3310.7,0.85201766]
[1768557026217,0.87158879,3311.9,3310.7,0.85201766]
[1768557026514,0.87158879,3311.8,3310.7,0.85201766]
[1768557026716,0.14273629,3312.0,3310.7,0.85201766]
[1768557026919,0.87161693,3311.9,3310.7,0.85201766]
[1768557027220,0.87161693,3311.8,3310.7,0.85201766]
[1768557027418,0.14273629,3312.0,3310.7,0.85201766]
[1768557027723,0.87165495,3311.9,3310.7,0.85201766]
[1768557027924,0.87165495,3311.8,3310.7,0.85201766]
[1768557028124,0.14273629,3312.0,3310.7,0.85201766]
[1768557028326,0.87165495,3311.9,3310.7,0.85201766]
[1768557028524,0.87165495,3311.8,3310.7,0.85201766]
[1768557028728,0.14273629,3312.0,3310.7,0.85201766]
[1768557029030,0.87324192,3311.9,3310.7,0.85201766]
[1768557029223,0.87324192,3311.8,3310.7,0.85201766]
[1768557029522,0.14273629,3312.0,3310.5,0.15108]
[1768557029723,0.87328996,3311.9,3310.5,0.15108]
[1768557030022,0.87328996,3311.8,3310.5,0.15108]
[1768557030222,0.14273629,3312.0,3310.5,0.15108]
[1768557030426,0.87329071,3311.9,3310.5,0.15108]
[1768557030628,0.87329071,3311.8,3310.5,0.15108]
[1768557030827,0.14273629,3312.0,3310.5,0.15108]
[1768557031027,1.01476129,3311.9,3310.5,0.15108]
[1768557031328,0.87330329,3311.8,3310.5,0.15108]
[1768557031627,0.141458,3311.9,3310.5,0.15108]
[1768557031820,1.01482338,3311.8,3310.5,0.15108]
[1768557032021,0.141458,3311.8,3310.5,0.15108]
[1768557033432,0.87349679,3311.7,3310.5,0.15108]
[1768557033726,0.141458,3311.8,3310.5,0.15108]
[1768557035330,0.87360973,3311.7,3310.5,0.15108]
[1768557035528,0.141458,3311.7,3310.5,0.15108]
[1768557038637,0.141458,3311.7,3309.9,3.77751239]
[1768557038832,0.141458,3311.5,3309.9,3.92862239]
[1768557039044,0.141458,3311.5,3309.9,0.15444199]
[1768557042532,0.141458,3311.3,3309.9,0.00333199]
[1768557042732,0.141458,3311.1,3309.9,0.00333199]
[1768557043037,1.01451035,3311.0,3309.9,0.00333199]
[1768557043238,0.141458,3311.0,3309.9,0.00333199]
[1768557047749,0.15104,3311.5,3309.9,0.00333199]
[1768557047750,0.141458,3311.4,3309.9,0.00333199]
[1768557051453,0.141458,3311.4,3310.1,0.85192513]
[1768557052748,0.141458,3311.4,3309.9,0.00333199]
[1768557060755,0.28260647,3311.9,3309.9,0.14057546]
[1768557060954,0.13158647,3311.7,3310.1,0.85192513]
[1768557061155,0.33738453,3311.6,3310.1,0.85192513]
[1768557061455,0.468971,3311.6,3310.1,0.85192513]
[1768557061652,0.13158647,3311.6,3310.2,0.15109]
[1768557063855,0.13158647,3311.6,3309.9,0.85525712]
[1768557065559,0.13158647,3311.6,3309.9,1.00636712]
[1768557067357,0.87265771,3311.5,3309.9,1.00636712]
[1768557067659,0.13158647,3311.6,3309.9,1.00636712]
[1768557067960,0.87265711,3311.5,3309.9,1.00636712]
[1768557068153,0.13158647,3311.6,3309.9,1.00636712]
[1768557068353,0.87265513,3311.5,3309.9,1.00636712]
[1768557068553,0.13158647,3311.6,3309.9,1.00636712]
[1768557068859,0.87278205,3311.5,3309.9,1.00636712]
[1768557069062,0.13158647,3311.6,3309.9,1.00636712]
[1768557069256,0.13158647,3311.4,3309.9,0.15444199]
[1768557073363,0.13158647,3311.4,3310.1,0.85192513]
[1768557077073,0.28260647,3311.9,3310.1,0.85192513]
[1768557077275,1.34256357,3311.8,3310.1,0.85192513]
[1768557077470,1.2109771,3311.7,3310.1,0.9891686]
[1768557077675,0.13158647,3311.8,3310.2,0.15109]
[1768557077878,0.13158647,3311.8,3310.3,0.85192513]
[1768557084670,0.29074214,3312.3,3310.3,0.98251564]
[1768557084981,0.13699276,3312.1,3310.3,1.13360564]
[1768557085171,1.34766005,3312.0,3310.3,1.13360564]
[1768557085370,0.13699276,3312.0,3310.3,1.13360564]
[1768557088674,0.13699276,3312.0,3310.3,1.00301513]
[1768557088880,0.13734447,3311.8,3310.3,1.00301513]
[1768557089268,0.13734447,3311.8,3310.6,0.85197814]
[1768557096985,0.13734447,3312.2,3310.9,0.85197814]
[1768557097180,1.21085816,3312.1,3310.9,0.85197814]
[1768557097388,1.21085816,3312.0,3310.9,0.85197814]
[1768557097688,0.13734447,3312.2,3310.9,0.85197814]
[1768557097883,1.21075135,3312.1,3310.9,0.85197814]
[1768557098089,1.21075135,3312.0,3310.9,0.85197814]
[1768557098288,0.13734447,3312.0,3310.6,0.85197814]
[1768557098588,0.33772423,3311.9,3310.6,0.85197814]
[1768557098787,0.13734447,3312.0,3310.6,0.85197814]
[1768557098988,0.33772432,3311.9,3310.6,0.85197814]
[1768557099190,0.13734447,3312.0,3310.6,0.85197814]
[1768557099390,0.33773561,3311.9,3310.6,0.85197814]
[1768557099589,0.13734447,3312.0,3310.6,0.85197814]
[1768557099790,0.47507966,3311.9,3310.6,0.85197814]
[1768557099991,0.13734447,3311.9,3310.6,0.85197814]
[1768557102191,0.13734447,3311.8,3310.5,0.85197814]
[1768557103101,0.13734447,3312.1,3310.9,0.85197814]
[1768557103286,0.13734447,3311.9,3310.6,0.85197814]
[1768557103588,0.13734447,3311.7,3310.4,1.00306814]
[1768557105293,0.13734447,3311.7,3310.7,0.85197814]
[1768557107593,1.14032261,3312.2,3310.7,0.85197814]
[1768557107795,1.21207865,3312.1,3310.7,0.85197814]
[1768557107994,1.21207865,3312.0,3310.7,0.85197814]
[1768557108298,1.21207865,3311.9,3310.7,0.85197814]
[1768557108498,0.87397862,3311.8,3310.7,0.85197814]
[1768557108796,1.14032261,3312.2,3310.7,0.85197814]
[1768557108998,1.21218565,3312.1,3310.7,0.85197814]
[1768557109193,1.21218565,3312.0,3310.7,0.85197814]
[1768557109397,1.21218565,3311.9,3310.7,0.85197814]
[1768557109601,0.87405658,3311.8,3310.7,0.85197814]
[1768557109804,0.13734447,3312.1,3310.7,0.85197814]
[1768557110104,1.21233127,3312.0,3310.7,0.85197814]
[1768557110296,1.21233127,3311.9,3310.7,0.85197814]
[1768557110496,0.8741617,3311.8,3310.7,0.85197814]
[1768557110698,0.13734447,3312.1,3310.7,0.85197814]
[1768557110898,1.21238486,3312.0,3310.7,0.85197814]
[1768557111098,1.21238486,3311.9,3310.7,0.85197814]
[1768557111396,0.87420034,3311.8,3310.7,0.85197814]
[1768557111595,0.13734447,3312.1,3310.7,0.85197814]
[1768557111784,1.21246269,3312.0,3310.7,0.85197814]
[1768557111993,1.21246269,3311.9,3310.7,0.85197814]
[1768557112301,1.21255553,3311.8,3310.7,0.85197814]
[1768557112500,0.13734447,3312.1,3310.7,0.85197814]
[1768557112704,1.2129001,3312.0,3310.7,0.85197814]
[1768557112888,1.21289811,3311.9,3310.4,0.15109]
[1768557113086,1.21289811,3311.8,3310.8,0.85197814]
[1768557113296,0.13734447,3312.1,3310.8,0.85197814]
[1768557113597,1.2128988,3312.0,3310.8,0.85197814]
[1768557113792,1.2128988,3311.9,3310.8,0.85197814]
[1768557114003,1.2128988,3311.8,3310.8,0.85197814]
[1768557114299,0.87457092,3311.7,3310.8,0.85197814]
[1768557114498,0.13734447,3312.1,3310.8,0.85197814]
[1768557114699,1.21296308,3312.0,3310.8,0.85197814]
[1768557114899,1.21296308,3311.9,3310.8,0.85197814]
[1768557115103,1.21296308,3311.8,3310.8,0.85197814]
[1768557115297,0.87461738,3311.7,3310.8,0.85197814]
[1768557115492,0.13734447,3312.1,3310.8,0.85197814]
[1768557115697,1.2129696,3312.0,3310.8,0.85197814]
[1768557115900,1.2129696,3311.9,3310.8,0.85197814]
[1768557116099,1.2129696,3311.8,3310.8,0.85197814]
[1768557116292,0.87462199,3311.7,3310.8,0.85197814]
[1768557116496,0.13734447,3312.1,3310.8,0.85197814]
[1768557116697,1.21297919,3312.0,3310.8,0.85197814]
[1768557116994,1.21297919,3311.9,3310.8,0.85197814]
[1768557117194,1.21297919,3311.8,3310.8,0.85197814]
[1768557117403,0.87462887,3311.7,3310.8,0.85197814]
[1768557117604,0.13734447,3312.1,3310.8,0.85197814]
[1768557117803,1.21298753,3312.0,3310.8,0.85197814]
[1768557118001,1.21298753,3311.9,3310.8,0.85197814]
[1768557118206,1.21298753,3311.8,3310.8,0.85197814]
[1768557118419,0.87463486,3311.7,3310.8,0.85197814]
[1768557118592,0.13734447,3312.1,3310.8,0.85197814]
[1768557118792,1.21283926,3312.0,3310.8,0.85197814]
[1768557118996,1.21283926,3311.9,3310.8,0.85197814]
[1768557119206,1.21283926,3311.8,3310.8,0.85197814]
[1768557119409,0.87448426,3311.7,3310.8,0.85197814]
[1768557119613,0.13734447,3312.1,3310.8,0.85197814]
[1768557119811,1.21286207,3312.0,3310.8,0.85197814]
[1768557120110,1.21286207,3311.9,3310.8,0.85197814]
[1768557120303,0.87450047,3311.8,3310.8,0.85197814]
[1768557120497,0.13734447,3312.1,3310.8,0.85197814]
[1768557120697,1.21285921,3312.0,3310.8,0.85197814]
[1768557120907,1.21285921,3311.9,3310.8,0.85197814]
[1768557121209,0.87449867,3311.8,3310.8,0.85197814]
[1768557121411,0.13734447,3312.1,3310.8,0.85197814]
[1768557121613,1.21285499,3312.0,3310.8,0.85197814]
[1768557121809,1.21285499,3311.9,3310.8,0.85197814]
[1768557122000,0.87449563,3311.8,3310.9,0.85197814]
[1768557122299,0.13734447,3312.1,3310.8,0.85197814]
[1768557122499,1.21285187,3312.0,3310.8,0.85197814]
[1768557122800,1.21285187,3311.9,3310.8,0.85197814]
[1768557123111,0.87449338,3311.8,3310.8,0.85197814]
[1768557123307,0.13734447,3312.1,3310.8,0.85197814]
[1768557123610,1.21284186,3312.0,3310.8,0.85197814]
[1768557123807,1.21284186,3311.9,3310.8,0.85197814]
[1768557124008,0.13734447,3312.1,3310.8,0.85197814]
[1768557124313,1.21283743,3312.0,3310.8,0.85197814]
[1768557124512,1.21283743,3311.9,3310.8,0.85197814]
[1768557124715,0.13734447,3312.1,3310.8,0.85197814]
[1768557124911,1.21280134,3312.0,3310.8,0.85197814]
[1768557125112,1.21280134,3311.9,3310.8,0.85197814]
[1768557125307,0.13734447,3312.1,3310.8,0.85197814]
[1768557125506,1.21274331,3312.0,3310.8,0.85197814]
[1768557125707,1.21274331,3311.9,3310.8,0.85197814]
[1768557125916,0.13734447,3312.1,3310.8,0.85197814]
[1768557126107,1.21274488,3312.0,3310.8,0.85197814]
[1768557126306,0.87441613,3311.9,3310.8,0.85197814]
[1768557126507,0.13734447,3312.1,3310.8,0.85197814]
[1768557126707,1.21271816,3312.0,3310.8,0.85197814]
[1768557127016,1.21271816,3311.9,3310.8,0.85197814]
[1768557127311,0.151,3312.2,3310.8,0.85197814]
[1768557127502,1.21270272,3312.1,3310.8,0.85197814]
[1768557127705,1.21270272,3312.0,3310.8,0.85197814]
[1768557128013,0.151,3312.2,3311.1,0.85197814]
[1768557128206,1.21273061,3312.1,3311.1,0.85197814]
[1768557128407,1.21273061,3312.0,3311.1,0.85197814]
[1768557128605,0.151,3312.2,3311.1,0.85197814]
[1768557128805,1.21266599,3312.1,3311.1,0.85197814]
[1768557129006,1.21266599,3312.0,3311.1,0.85197814]
[1768557129214,0.29262376,3312.2,3311.1,0.85197814]
[1768557129416,1.35422605,3312.1,3311.1,0.85197814]
[1768557129612,1.21260229,3312.0,3311.1,0.85197814]
[1768557129815,0.14162376,3312.1,3311.1,0.85197814]
[1768557130011,1.21260086,3312.0,3311.1,0.85197814]
[1768557130211,0.14162376,3312.1,3311.1,0.85197814]
[1768557130511,1.21255875,3312.0,3311.1,0.85197814]
[1768557130711,0.14162376,3312.1,3311.1,0.85197814]
[1768557131012,1.2125577,3312.0,3311.1,0.85197814]
[1768557131210,0.14162376,3312.1,3311.1,0.85197814]
[1768557131418,1.21251554,3312.0,3311.1,0.85197814]
[1768557131618,0.14162376,3312.1,3311.1,0.85197814]
[1768557131808,1.21251668,3312.0,3311.1,0.85197814]
[1768557132008,0.14162376,3312.1,3311.1,0.85197814]
[1768557132208,1.21251668,3312.0,3311.1,0.85197814]
[1768557132408,0.14162376,3312.1,3311.1,0.85197814]
[1768557132616,1.20949823,3312.0,3311.1,0.85197814]
[1768557132814,0.14162376,3312.1,3311.1,0.85197814]
[1768557133015,1.20949907,3312.0,3311.1,0.85197814]
[1768557133209,0.14162376,3312.1,3311.1,0.85197814]
[1768557133414,1.20946149,3312.0,3311.1,0.85197814]
[1768557133609,0.14162376,3312.1,3311.1,0.85197814]
[1768557133817,1.20946189,3312.0,3311.1,0.85197814]
[1768557134018,0.14162376,3312.1,3311.1,0.85197814]
[1768557134317,1.209584,3312.0,3311.1,0.85197814]
[1768557134518,0.151,3312.2,3311.1,0.85197814]
[1768557134717,1.20969633,3312.1,3310.9,0.85197814]
[1768557134910,0.151,3312.2,3310.9,0.85197814]
[1768557134911,0.8743637,3312.0,3310.9,0.85197814]
[1768557135211,0.151,3312.2,3310.9,0.85197814]
[1768557135411,1.20968935,3312.1,3310.9,0.85197814]
[1768557135611,0.87435878,3312.0,3310.9,0.85197814]
[1768557135806,0.29262376,3312.2,3310.9,0.85197814]
[1768557136009,1.20968768,3312.1,3310.9,0.85197814]
[1768557136219,0.87435757,3312.0,3310.9,0.85197814]
[1768557136518,0.14162376,3312.1,3310.9,0.85197814]
[1768557136719,0.87436148,3312.0,3310.9,0.85197814]
[1768557136912,0.14162376,3312.1,3310.9,0.85197814]
[1768557137112,1.20969139,3312.0,3310.9,0.85197814]
[1768557137414,0.14162376,3312.1,3310.9,0.85197814]
[1768557137614,1.2098379,3312.0,3310.9,0.85197814]
[1768557137813,0.14162376,3312.1,3310.9,0.85197814]
[1768557138014,1.20995279,3312.0,3310.9,0.85197814]
[1768557138222,0.14162376,3312.1,3310.9,0.85197814]
[1768557138418,1.20995007,3312.0,3310.9,0.85197814]
[1768557138715,0.14162376,3312.1,3310.9,0.85197814]
[1768557139022,1.21010099,3312.0,3310.9,0.85197814]
[1768557139319,0.14162376,3312.1,3310.9,0.85197814]
[1768557139521,1.21010729,3312.0,3310.9,0.85197814]
[1768557139721,0.14162376,3312.1,3310.9,0.85197814]
[1768557139922,1.21010729,3312.0,3310.9,0.85197814]
[1768557140122,0.14162376,3312.1,3310.9,0.85197814]
[1768557140321,1.21011164,3312.0,3310.9,0.85197814]
[1768557140623,0.14162376,3312.1,3310.9,0.85197814]
[1768557140820,1.21011427,3312.0,3310.9,0.85197814]
[1768557141015,0.14162376,3312.1,3310.9,0.85197814]
[1768557141322,0.87466695,3312.0,3310.9,0.85197814]
[1768557141523,0.14162376,3312.1,3310.9,0.85197814]
[1768557141715,0.87468262,3312.0,3310.9,0.85197814]
[1768557141911,0.00274938,3312.3,3311.2,0.85197814]
[1768557142121,0.87471257,3312.2,3311.2,0.85197814]
[1768557142323,0.00274938,3312.3,3311.2,0.85197814]
[1768557144223,0.14344664,3313.0,3312.0,0.85197814]
[1768557144423,1.20635272,3312.9,3311.8,0.85197814]
[1768557144630,1.20635272,3312.8,3311.8,0.85197814]
[1768557144818,1.20635272,3312.7,3311.8,0.85197814]
[1768557145018,0.14344664,3313.0,3311.8,0.85197814]
[1768557145228,1.20638091,3312.9,3311.8,0.85197814]
[1768557145528,0.33535375,3312.8,3312.1,0.85197814]
[1768557145725,0.14606733,3313.0,3312.1,0.85197814]
[1768557145924,0.33521519,3312.9,3312.1,0.85197814]
[1768557146226,0.14606733,3313.0,3312.1,0.85197814]
[1768557147026,0.00262069,3313.0,3312.1,0.85197814]
[1768557149321,0.00262069,3313.0,3311.7,0.85197814]
[1768557151423,0.00262069,3313.0,3311.5,0.13773516]
[1768557153434,0.00262069,3313.0,3311.5,0.28877516]
[1768557153733,0.00262069,3313.0,3311.6,0.14057803]
[1768557160048,0.00262069,3313.0,3311.4,2.49336934]
[1768557160049,0.00262069,3313.0,3311.8,0.85136934]
[1768557160340,0.00262069,3313.0,3311.8,1.14296737]
[1768557160945,0.15093,3313.9,3312.0,0.14057803]
[1768557161137,0.13735607,3313.7,3312.0,0.14057803]
[1768557161440,0.13735607,3313.7,3311.9,0.15102]
[1768557162039,0.13968016,3313.7,3311.9,0.15102]
[1768557168446,0.13968016,3313.7,3311.9,0.29159803]
[1768557169953,0.13968016,3313.7,3312.0,0.14057803]
[1768557173750,0.13968016,3313.7,3312.0,1.78457803]
[1768557175350,0.13968016,3313.7,3311.9,0.15102]
[1768557175543,0.14369683,3313.5,3312.5,0.00452816]
[1768557175739,0.14369683,3313.5,3312.5,0.0081626]
[1768557177550,0.14369683,3313.3,3311.4,3.7741804]
[1768557177756,0.14822499,3313.3,3311.3,1.79605]
[1768557178051,0.14822499,3313.3,3311.4,0.85136934]
[1768557178549,0.14822499,3313.3,3311.5,0.29516394]
[1768557178751,0.00452816,3313.3,3311.8,0.99549328]
[1768557180245,0.00452816,3313.3,3311.9,0.14412394]
[1768557185458,0.00452816,3313.3,3311.9,0.29514394]
[1768557185965,0.00452816,3313.3,3312.0,0.14412394]
[1768557189857,0.00452816,3313.3,3312.2,0.85136934]
[1768557192458,0.00232409,3313.7,3312.4,0.00452816]
[1768557194264,0.00232409,3313.7,3312.6,0.85136934]
[1768557195262,0.14369683,3314.1,3312.6,0.85136934]
[1768557195659,0.14369683,3314.1,3312.6,1.00235934]
[1768557196161,0.00226925,3314.1,3312.6,1.14648328]
[1768557196461,0.00226925,3314.1,3313.0,0.85136934]
[1768557205673,0.00226925,3314.1,3312.9,1.652]
[1768557211272,0.00226925,3314.1,3313.2,0.8506039]
[1768557212275,0.00226925,3314.1,3312.7,0.29510394]
[1768557212475,0.00226925,3314.1,3313.2,0.8506039]
[1768557222085,0.00226925,3314.1,3312.8,1.653]
[1768557222380,0.00226925,3314.1,3313.2,0.8506039]
[1768557226178,0.14509906,3314.1,3312.5,3.7741804]
[1768557226386,0.14282981,3313.9,3312.5,4.6247843]
[1768557226578,0.14282981,3313.9,3312.5,0.8506039]
[1768557228875,0.14282981,3313.9,3312.8,0.8506039]
[1768557229583,0.00226925,3314.1,3313.1,0.8506039]
[1768557233691,0.86882322,3314.0,3313.1,0.8506039]
[1768557233989,0.00226925,3314.1,3313.1,0.8506039]
[1768557233990,0.86882322,3313.9,3313.1,0.8506039]
[1768557234192,0.00226925,3314.1,3313.1,0.8506039]
[1768557234387,0.86879219,3314.0,3313.1,0.8506039]
[1768557234691,0.86879219,3313.9,3313.1,0.8506039]
[1768557234892,0.00226925,3314.1,3313.1,0.8506039]
[1768557235190,1.20443776,3314.0,3313.1,0.8506039]
[1768557235378,0.00226925,3314.1,3313.1,0.8506039]
[1768557235582,1.20440421,3314.0,3313.1,0.8506039]
[1768557235782,0.00226925,3314.1,3313.1,0.8506039]
[1768557236085,1.20440421,3314.0,3313.1,0.8506039]
[1768557236285,0.00226925,3314.1,3313.1,0.8506039]
[1768557236484,1.2043731,3314.0,3313.1,0.8506039]
[1768557236687,0.00226925,3314.1,3313.1,0.8506039]
[1768557236891,1.20437334,3314.0,3313.1,0.8506039]
[1768557237090,0.00226925,3314.1,3313.1,0.8506039]
[1768557237392,1.20435228,3314.0,3313.1,0.8506039]
[1768557237592,0.00226925,3314.1,3313.1,0.8506039]
[1768557237791,1.20435219,3314.0,3313.1,0.8506039]
[1768557237990,0.00226925,3314.1,3313.1,0.8506039]
[1768557238192,1.20435028,3314.0,3313.1,0.8506039]
[1768557238494,0.00226925,3314.1,3313.1,0.8506039]
[1768557238691,1.2048481,3314.0,3313.1,0.8506039]
[1768557238883,0.00226925,3314.1,3313.1,0.8506039]
[1768557239083,1.20485623,3314.0,3313.1,0.8506039]
[1768557239285,0.00226925,3314.1,3313.1,0.8506039]
[1768557239485,1.20484908,3314.0,3313.1,0.8506039]
[1768557239685,0.00226925,3314.1,3313.1,0.8506039]
[1768557239883,1.2048493,3314.0,3313.1,0.8506039]
[1768557240091,0.00226925,3314.1,3313.1,0.8506039]
[1768557240287,1.20485115,3314.0,3313.1,0.8506039]
[1768557240487,0.00226925,3314.1,3313.1,0.8506039]
[1768557240694,1.20485115,3314.0,3313.1,0.8506039]
[1768557240890,0.00226925,3314.1,3313.1,0.8506039]
[1768557241090,1.20485112,3314.0,3312.5,0.13660813]
[1768557241286,0.00226925,3314.1,3312.9,0.8506039]
[1768557241486,1.20485541,3314.0,3312.9,0.8506039]
[1768557241688,0.00226925,3314.1,3312.9,0.8506039]
[1768557241889,1.20485746,3314.0,3312.9,0.8506039]
[1768557242190,1.20485746,3314.0,3312.5,0.13660813]
[1768557242191,0.00226925,3314.1,3312.5,0.13660813]
[1768557242398,0.8506039,3313.5,3312.4,0.00452816]
[1768557242591,0.8506039,3313.2,3311.8,3.7741804]
[1768557242796,0.1341818,3313.1,3311.6,0.8506039]
[1768557243201,0.1341818,3313.1,3311.9,0.8506039]
[1768557248205,0.1341818,3313.1,3311.5,0.28612139]
[1768557248401,0.1341818,3313.1,3312.1,0.8506039]
[1768557248607,0.1341818,3313.4,3312.1,0.8506039]
[1768557256912,0.8506039,3313.2,3311.5,0.28612139]
[1768557257113,0.1341818,3313.3,3311.8,0.8506039]
[1768557260518,0.1341818,3313.3,3311.5,0.28612139]
[1768557260712,0.1341818,3313.3,3311.9,0.8506039]
[1768557262025,0.1341818,3313.3,3311.5,0.28612139]
[1768557262226,0.1341818,3313.3,3311.9,0.8506039]
[1768557266529,0.15546816,3313.6,3311.5,0.28612139]
[1768557266530,0.99489043,3313.1,3311.6,0.8506039]
[1768557269330,0.99489043,3313.1,3311.5,0.28612139]
[1768557269528,0.1334593,3313.0,3311.5,0.13508139]
[1768557269722,0.8506039,3312.4,3311.5,0.00280514]
[1768557271336,0.1334593,3312.7,3311.5,0.00280514]
[1768557277129,0.1334593,3312.5,3310.5,0.77139725]
[1768557277330,0.1334593,3312.4,3310.5,0.77139725]
[1768557278034,0.00452816,3311.8,3310.5,0.77399187]
[1768557296357,0.00452816,3311.8,3310.5,0.77399187]
[1768557296760,0.00452816,3311.8,3310.5,0.91643072]
[1768557315477,0.00452816,3311.8,3310.6,0.14243885]
[1768557327484,0.00452816,3311.8,3310.6,0.99411219]
[1768557327682,0.13935445,3312.7,3311.0,0.99545863]
[1768557327884,1.20772595,3312.6,3311.0,0.99545863]
[1768557328186,1.20772595,3312.5,3311.0,0.99545863]
[1768557328388,1.20772595,3312.4,3311.0,0.99545863]
[1768557328578,1.20772595,3312.3,3311.0,0.99545863]
[1768557328778,0.87217245,3312.2,3311.0,0.99545863]
[1768557328978,0.13935445,3312.7,3311.0,0.99545863]
[1768557329187,1.2092247,3312.6,3311.0,0.99545863]
[1768557329387,1.2092247,3312.5,3311.0,0.99545863]
[1768557329686,1.2092247,3312.4,3311.0,0.99545863]
[1768557329889,1.2092247,3312.3,3311.0,0.14378529]
[1768557330089,0.13935445,3312.6,3311.0,0.14378529]
[1768557330279,1.34834728,3312.5,3311.0,0.14378529]
[1768557330478,1.20899283,3312.4,3311.0,0.14378529]
[1768557330685,1.20899283,3312.3,3311.0,0.14378529]
[1768557330983,0.13935445,3312.5,3311.0,0.14378529]
[1768557331184,1.20883984,3312.4,3311.0,0.14378529]
[1768557331383,1.20883984,3312.3,3311.0,0.14378529]
[1768557331686,0.13935445,3312.5,3311.0,0.14378529]
[1768557331888,1.20870665,3312.4,3311.0,0.14378529]
[1768557332087,1.20870665,3312.3,3311.0,0.14378529]
[1768557332274,0.13935445,3312.5,3311.0,0.14378529]
[1768557332480,1.20859696,3312.4,3311.0,0.14378529]
[1768557332774,1.20859696,3312.3,3311.0,0.14378529]
[1768557332977,0.13935445,3312.5,3311.0,0.14378529]
[1768557333188,1.20859696,3312.4,3311.0,0.14378529]
[1768557333381,0.13935445,3312.5,3311.2,0.85167053]
[1768557333382,1.20859696,3312.3,3311.2,0.85167053]
[1768557333583,0.13935445,3312.5,3311.2,0.85167053]
[1768557333781,1.20850736,3312.4,3311.2,0.85167053]
[1768557334083,0.33522379,3312.3,3311.2,0.85167053]
[1768557334279,0.13935445,3312.5,3311.2,0.85167053]
[1768557334585,1.20843079,3312.4,3311.2,0.85167053]
[1768557334786,0.13935445,3312.5,3311.2,0.85167053]
[1768557334981,1.20842974,3312.4,3311.2,0.85167053]
[1768557335183,0.13935445,3312.5,3311.2,0.85167053]
[1768557335382,1.20836781,3312.4,3311.2,0.85167053]
[1768557335589,0.13935445,3312.5,3311.2,0.85167053]
[1768557335779,1.20836743,3312.4,3311.2,0.85167053]
[1768557335982,0.13935445,3312.5,3311.2,0.85167053]
[1768557336181,1.20836638,3312.4,3311.2,0.85167053]
[1768557336381,0.13935445,3312.5,3311.2,0.85167053]
[1768557336681,1.2082191,3312.4,3311.2,0.85167053]
[1768557336883,0.13935445,3312.5,3311.2,0.85167053]
[1768557337084,1.20822166,3312.4,3311.2,0.85167053]
[1768557337389,0.13935445,3312.5,3311.2,0.85167053]
[1768557337592,1.20815137,3312.4,3311.2,0.85167053]
[1768557337796,0.13935445,3312.5,3311.2,0.85167053]
[1768557337994,1.20815032,3312.4,3311.2,0.85167053]
[1768557338292,0.13935445,3312.5,3311.2,0.85167053]
[1768557338493,0.87300326,3312.4,3311.2,0.85167053]
[1768557338686,0.13935445,3312.5,3311.2,0.85167053]
[1768557338887,0.8730033,3312.4,3311.4,0.85167053]
[1768557339088,0.13935445,3312.5,3311.4,0.85167053]
[1768557339292,0.8729927,3312.4,3311.4,0.85167053]
[1768557339492,0.13935445,3312.5,3311.4,0.85167053]
[1768557339693,0.87295406,3312.4,3311.4,0.85167053]
[1768557339890,0.13935445,3312.5,3311.4,0.85167053]
[1768557340193,0.87294773,3312.4,3311.4,0.85167053]
[1768557340392,0.13935445,3312.5,3311.4,0.85167053]
[1768557340589,0.87292735,3312.4,3311.4,0.85167053]
[1768557340793,0.13935445,3312.5,3311.4,0.85167053]
[1768557340993,0.87292331,3312.4,3311.4,0.85167053]
[1768557341292,0.13935445,3312.5,3311.4,0.85167053]
[1768557341492,0.87291437,3312.4,3311.4,0.85167053]
[1768557341690,0.13935445,3312.5,3311.4,0.85167053]
[1768557341896,0.87290621,3312.4,3311.4,0.85167053]
[1768557342082,0.13935445,3312.5,3311.4,0.85167053]
[1768557342287,0.87281297,3312.4,3311.4,0.85167053]